[Event "Titled Tuesday Blitz June 13 Early 2023"]
[White "Palczert, Matyas"]
[Black "Afanasieva, Alexandra"]
[WhiteFideId "784958"]
[BlackFideId "34126926"]
[WhiteElo "2224"]
[BlackElo "1736"]
[Result "0-1"]
[Round "6"]
[TimeControl "180+2"]
[Date "2023.06.13"]
[WhiteClock "0:00:05"]
[BlackClock "0:00:03"]
[Board "152"]

1. e4 {[%clk 0:03:00]}  c5 {[%clk 0:02:59]} 2. Nf3 {[%clk 0:03:00]}  e6 {[%clk 0:02:59]} 3. d4 {[%clk 0:03:00]}  cxd4 {[%clk 0:03:00]} 4. Bg5 {[%clk 0:02:58]}  Qa5+ {[%clk 0:02:45]} 5. c3 {[%clk 0:02:56]}  dxc3 {[%clk 0:02:41]} 6. Nxc3 {[%clk 0:02:57]}  Nc6 {[%clk 0:02:30]} 7. Be2 {[%clk 0:02:48]}  Bb4 {[%clk 0:02:23]} 8. Bd2 {[%clk 0:02:37]}  Qd8 {[%clk 0:02:02]} 9. Nb5 {[%clk 0:02:34]}  d5 {[%clk 0:01:45]} 10. exd5 {[%clk 0:02:24]}  exd5 {[%clk 0:01:46]} 11. Bxb4 {[%clk 0:02:17]}  Nxb4 {[%clk 0:01:47]} 12. a3 {[%clk 0:02:17]}  Nc6 {[%clk 0:01:33]} 13. Qxd5 {[%clk 0:02:13]}  Qxd5 {[%clk 0:01:34]} 14. Nc7+ {[%clk 0:02:13]}  Kf8 {[%clk 0:01:25]} 15. Nxd5 {[%clk 0:02:13]}  Nge7 {[%clk 0:01:25]} 16. Nc3 {[%clk 0:02:03]}  Bf5 {[%clk 0:01:20]} 17. O-O {[%clk 0:02:02]}  g6 {[%clk 0:01:18]} 18. Rad1 {[%clk 0:01:55]}  Kg7 {[%clk 0:01:18]} 19. Nb5 {[%clk 0:01:52]}  Rad8 {[%clk 0:01:11]} 20. Nd6 {[%clk 0:01:51]}  Be6 {[%clk 0:00:31]} 21. Nxb7 {[%clk 0:01:22]}  Rb8 {[%clk 0:00:31]} 22. Nc5 {[%clk 0:01:22]}  Rxb2 {[%clk 0:00:30]} 23. Nxe6+ {[%clk 0:01:22]}  fxe6 {[%clk 0:00:31]} 24. Bc4 {[%clk 0:01:23]}  e5 {[%clk 0:00:11]} 25. Rd7 {[%clk 0:01:18]}  Rd8 {[%clk 0:00:10]} 26. Nxe5 {[%clk 0:01:13]}  Nxe5 {[%clk 0:00:07]} 27. Rxe7+ {[%clk 0:01:05]}  Kf6 {[%clk 0:00:07]} 28. Re6+ {[%clk 0:00:47]}  Kf5 {[%clk 0:00:07]} 29. g4+ {[%clk 0:00:40]}  Nxg4 {[%clk 0:00:01]} 30. Re7 {[%clk 0:00:29]}  Ne5 {[%clk 0:00:02]} 31. Ba6 {[%clk 0:00:22]}  Rdd2 {[%clk 0:00:02]} 32. Rxa7 {[%clk 0:00:18]}  Ng4 {[%clk 0:00:03]} 33. Bc8+ {[%clk 0:00:18]}  Kg5 {[%clk 0:00:03]} 34. Ra5+ {[%clk 0:00:17]}  Kh4 {[%clk 0:00:02]} 35. Ra4 {[%clk 0:00:17]}  h5 {[%clk 0:00:03]} 36. Bxg4 {[%clk 0:00:15]}  hxg4 {[%clk 0:00:04]} 37. Ra6 {[%clk 0:00:15]}  Kg5 {[%clk 0:00:03]} 38. a4 {[%clk 0:00:15]}  Ra2 {[%clk 0:00:03]} 39. a5 {[%clk 0:00:15]}  Rd5 {[%clk 0:00:04]} 40. Re1 {[%clk 0:00:11]}  Raxa5 {[%clk 0:00:02]} 41. Rae6 {[%clk 0:00:10]}  Rf5 {[%clk 0:00:02]} 42. R1e2 {[%clk 0:00:09]}  Ra1+ {[%clk 0:00:03]} 43. Kg2 {[%clk 0:00:09]}  Ra3 {[%clk 0:00:03]} 44. Rb6 {[%clk 0:00:09]}  Raf3 {[%clk 0:00:04]} 45. Rbb2 {[%clk 0:00:08]}  R3f4 {[%clk 0:00:04]} 46. Rb6 {[%clk 0:00:07]}  Rf6 {[%clk 0:00:04]} 47. Rb5+ {[%clk 0:00:07]}  R6f5 {[%clk 0:00:04]} 48. Rb7 {[%clk 0:00:07]}  Rf7 {[%clk 0:00:04]} 49. Rb3 {[%clk 0:00:06]}  R7f5 {[%clk 0:00:04]} 50. Rb6 {[%clk 0:00:06]}  Rf6 {[%clk 0:00:04]} 51. Rbb2 {[%clk 0:00:06]}  Rf3 {[%clk 0:00:04]} 52. Kg1 {[%clk 0:00:06]}  R3f5 {[%clk 0:00:03]} 53. Rb4 {[%clk 0:00:05]}  Rf4 {[%clk 0:00:03]} 54. Rb8 {[%clk 0:00:04]}  Rf8 {[%clk 0:00:03]} 55. Re5+ {[%clk 0:00:04]}  Kh4 {[%clk 0:00:02]} 56. Rb7 {[%clk 0:00:03]}  R4f7 {[%clk 0:00:01]} 57. Rb3 {[%clk 0:00:03]}  Rf5 {[%clk 0:00:01]} 58. Ree3 {[%clk 0:00:03]}  Kg5 {[%clk 0:00:02]} 59. Re4 {[%clk 0:00:03]}  Rxf2 {[%clk 0:00:02]} 60. Rb5+ {[%clk 0:00:03]}  Kh6 {[%clk 0:00:02]} 61. Ree5 {[%clk 0:00:04]}  Rf1+ {[%clk 0:00:02]} 62. Kg2 {[%clk 0:00:05]}  R8f2+ {[%clk 0:00:02]} 63. Kg3 {[%clk 0:00:06]}  Rf5 {[%clk 0:00:03]} 64. Kxg4 {[%clk 0:00:05]}  Rg1+ {[%clk 0:00:04]} 65. Kh3 {[%clk 0:00:04]}  Rf3+ {[%clk 0:00:02]} 66. Kh4 {[%clk 0:00:05]}  Rf4+ {[%clk 0:00:02]} 67. Kh3 {[%clk 0:00:05]}  g5 {[%clk 0:00:02]} 68. Re6+ {[%clk 0:00:04]}  Kh5 {[%clk 0:00:03]} 69. Rb3 {[%clk 0:00:05]}  Rh4# {[%clk 0:00:03]} 0-1


[Site "https://www.chess.com"]

[Event "Titled Tuesday Blitz June 13 Early 2023"]
[White "Vyatkin, Dmitry"]
[Black "Vila Dupla, Aurelio"]
[WhiteFideId "4171900"]
[BlackFideId "2203383"]
[WhiteElo "2279"]
[BlackElo "2009"]
[Result "1-0"]
[Round "6"]
[TimeControl "180+2"]
[Date "2023.06.13"]
[WhiteClock "0:00:24"]
[BlackClock "0:00:00"]
[Board "153"]

1. d4 {[%clk 0:02:56]}  Nf6 {[%clk 0:02:58]} 2. c4 {[%clk 0:02:54]}  g6 {[%clk 0:02:58]} 3. g3 {[%clk 0:02:54]}  c6 {[%clk 0:02:56]} 4. Bg2 {[%clk 0:02:50]}  d5 {[%clk 0:02:57]} 5. Nd2 {[%clk 0:02:49]}  Bg7 {[%clk 0:02:56]} 6. Ngf3 {[%clk 0:02:49]}  O-O {[%clk 0:02:56]} 7. O-O {[%clk 0:02:50]}  Ne4 {[%clk 0:02:38]} 8. Qb3 {[%clk 0:02:31]}  Nxd2 {[%clk 0:02:21]} 9. Bxd2 {[%clk 0:02:30]}  dxc4 {[%clk 0:02:17]} 10. Qxc4 {[%clk 0:02:30]}  Be6 {[%clk 0:02:17]} 11. Qc2 {[%clk 0:02:25]}  Bd5 {[%clk 0:02:12]} 12. e4 {[%clk 0:02:23]}  Be6 {[%clk 0:02:08]} 13. Rfd1 {[%clk 0:02:19]}  Bg4 {[%clk 0:02:08]} 14. Bc3 {[%clk 0:02:05]}  Qd7 {[%clk 0:01:49]} 15. Rd3 {[%clk 0:01:56]}  Rd8 {[%clk 0:01:37]} 16. Rad1 {[%clk 0:01:42]}  Na6 {[%clk 0:01:35]} 17. R1d2 {[%clk 0:01:42]}  Nc7 {[%clk 0:01:34]} 18. Ne5 {[%clk 0:01:42]}  Bxe5 {[%clk 0:01:24]} 19. dxe5 {[%clk 0:01:42]}  Qe8 {[%clk 0:01:25]} 20. h3 {[%clk 0:01:17]}  Be6 {[%clk 0:01:24]} 21. f4 {[%clk 0:01:15]}  Bc4 {[%clk 0:00:52]} 22. Rd4 {[%clk 0:01:14]}  Bb5 {[%clk 0:00:41]} 23. a4 {[%clk 0:01:10]}  Ba6 {[%clk 0:00:40]} 24. f5 {[%clk 0:01:04]}  c5 {[%clk 0:00:37]} 25. Rxd8 {[%clk 0:01:01]}  Rxd8 {[%clk 0:00:36]} 26. e6 {[%clk 0:00:45]}  fxe6 {[%clk 0:00:27]} 27. b3 {[%clk 0:00:38]}  b5 {[%clk 0:00:15]} 28. Bb2 {[%clk 0:00:30]}  Rxd2 {[%clk 0:00:08]} 29. Qxd2 {[%clk 0:00:30]}  b4 {[%clk 0:00:00]} 30. Qf4 {[%clk 0:00:24]} 1-0


[Site "https://www.chess.com"]

[Event "Titled Tuesday Blitz June 13 Early 2023"]
[White "EdmundPlayer"]
[Black "Rios Escobar, Adan"]
[BlackFideId "3403645"]
[WhiteElo "2261"]
[BlackElo "2456"]
[Result "1/2-1/2"]
[Round "6"]
[TimeControl "180+2"]
[Date "2023.06.13"]
[WhiteClock "0:00:04"]
[BlackClock "0:00:05"]
[Board "154"]

1. e4 {[%clk 0:03:00]}  c5 {[%clk 0:02:53]} 2. Nf3 {[%clk 0:03:00]}  d6 {[%clk 0:02:53]} 3. d4 {[%clk 0:03:00]}  cxd4 {[%clk 0:02:54]} 4. Nxd4 {[%clk 0:03:01]}  Nf6 {[%clk 0:02:55]} 5. Nc3 {[%clk 0:03:01]}  a6 {[%clk 0:02:55]} 6. h3 {[%clk 0:03:01]}  e5 {[%clk 0:02:54]} 7. Nde2 {[%clk 0:03:01]}  h5 {[%clk 0:02:55]} 8. Bg5 {[%clk 0:03:00]}  Be6 {[%clk 0:02:49]} 9. Bxf6 {[%clk 0:02:56]}  Qxf6 {[%clk 0:02:46]} 10. Nd5 {[%clk 0:02:57]}  Qd8 {[%clk 0:02:45]} 11. Nec3 {[%clk 0:02:56]}  Nd7 {[%clk 0:02:43]} 12. Bc4 {[%clk 0:02:50]}  Qc8 {[%clk 0:02:00]} 13. Qe2 {[%clk 0:02:21]}  b5 {[%clk 0:01:51]} 14. Bb3 {[%clk 0:02:06]}  Qb7 {[%clk 0:01:27]} 15. O-O {[%clk 0:01:52]}  Rc8 {[%clk 0:01:07]} 16. Nd1 {[%clk 0:01:38]}  Nb6 {[%clk 0:00:54]} 17. N1e3 {[%clk 0:01:36]}  Be7 {[%clk 0:00:36]} 18. Nxe7 {[%clk 0:00:49]}  Kxe7 {[%clk 0:00:31]} 19. Rad1 {[%clk 0:00:32]}  Nc4 {[%clk 0:00:26]} 20. Bxc4 {[%clk 0:00:29]}  Bxc4 {[%clk 0:00:24]} 21. Nxc4 {[%clk 0:00:26]}  Rxc4 {[%clk 0:00:25]} 22. Rd5 {[%clk 0:00:23]}  Qc6 {[%clk 0:00:20]} 23. c3 {[%clk 0:00:18]}  Rc5 {[%clk 0:00:20]} 24. Rfd1 {[%clk 0:00:18]}  Rxd5 {[%clk 0:00:20]} 25. Rxd5 {[%clk 0:00:18]}  g6 {[%clk 0:00:16]} 26. Qe3 {[%clk 0:00:17]}  f6 {[%clk 0:00:12]} 27. Qa7+ {[%clk 0:00:16]}  Ke6 {[%clk 0:00:12]} 28. Qg7 {[%clk 0:00:13]}  Qe8 {[%clk 0:00:12]} 29. Qb7 {[%clk 0:00:09]}  Qc8 {[%clk 0:00:11]} 30. Qg7 {[%clk 0:00:06]}  Qe8 {[%clk 0:00:10]} 31. Qc7 {[%clk 0:00:06]}  Qd8 {[%clk 0:00:08]} 32. Qb7 {[%clk 0:00:05]}  Qc8 {[%clk 0:00:07]} 33. Qa7 {[%clk 0:00:04]}  Qc6 {[%clk 0:00:06]} 34. Qg7 {[%clk 0:00:04]}  Qe8 {[%clk 0:00:05]} 1/2-1/2


[Site "https://www.chess.com"]

[Event "Titled Tuesday Blitz June 13 Early 2023"]
[White "Jaivardhan Raj"]
[Black "Bueno, Alfeu Junior Varela"]
[WhiteFideId "25744437"]
[BlackFideId "2108879"]
[WhiteElo "1772"]
[BlackElo "2175"]
[Result "1-0"]
[Round "6"]
[TimeControl "180+2"]
[Date "2023.06.13"]
[WhiteClock "0:01:37"]
[BlackClock "0:00:00"]
[Board "156"]

1. e4 {[%clk 0:02:56]}  e6 {[%clk 0:02:59]} 2. d4 {[%clk 0:02:55]}  d5 {[%clk 0:02:59]} 3. Nd2 {[%clk 0:02:53]}  Nf6 {[%clk 0:02:59]} 4. e5 {[%clk 0:02:51]}  Nfd7 {[%clk 0:02:59]} 5. Bd3 {[%clk 0:02:51]}  c5 {[%clk 0:03:00]} 6. c3 {[%clk 0:02:52]}  Nc6 {[%clk 0:02:59]} 7. Ne2 {[%clk 0:02:52]}  cxd4 {[%clk 0:02:59]} 8. cxd4 {[%clk 0:02:53]}  f6 {[%clk 0:03:00]} 9. exf6 {[%clk 0:02:53]}  Nxf6 {[%clk 0:03:00]} 10. Nf3 {[%clk 0:02:52]}  Bd6 {[%clk 0:03:01]} 11. O-O {[%clk 0:02:52]}  Qc7 {[%clk 0:03:01]} 12. h3 {[%clk 0:02:52]}  O-O {[%clk 0:03:00]} 13. Be3 {[%clk 0:02:52]}  Bd7 {[%clk 0:02:55]} 14. Nc3 {[%clk 0:02:50]}  a6 {[%clk 0:02:55]} 15. Rc1 {[%clk 0:02:49]}  Be8 {[%clk 0:02:53]} 16. Bb1 {[%clk 0:02:49]}  Bh5 {[%clk 0:02:51]} 17. Bd3 {[%clk 0:02:40]}  Qb6 {[%clk 0:02:23]} 18. g4 {[%clk 0:02:33]}  Nxg4 {[%clk 0:01:41]} 19. hxg4 {[%clk 0:02:27]}  Bxg4 {[%clk 0:01:42]} 20. Be2 {[%clk 0:02:24]}  Qd8 {[%clk 0:01:42]} 21. Ne5 {[%clk 0:02:21]}  Bxe2 {[%clk 0:01:23]} 22. Nxe2 {[%clk 0:02:15]}  Qh4 {[%clk 0:00:40]} 23. Ng3 {[%clk 0:02:11]}  Bxe5 {[%clk 0:00:30]} 24. dxe5 {[%clk 0:02:08]}  Nxe5 {[%clk 0:00:27]} 25. Kg2 {[%clk 0:02:05]}  Nf3 {[%clk 0:00:24]} 26. Rh1 {[%clk 0:02:04]}  Qg4 {[%clk 0:00:24]} 27. Qd3 {[%clk 0:02:02]}  h6 {[%clk 0:00:20]} 28. Rc7 {[%clk 0:01:55]}  Nh4+ {[%clk 0:00:17]} 29. Kg1 {[%clk 0:01:50]}  Nf3+ {[%clk 0:00:16]} 30. Kf1 {[%clk 0:01:48]}  Ne5 {[%clk 0:00:11]} 31. Qc3 {[%clk 0:01:45]}  Qxg3 {[%clk 0:00:11]} 32. Rg1 {[%clk 0:01:42]}  Qh3+ {[%clk 0:00:10]} 33. Ke1 {[%clk 0:01:39]}  Nf3+ {[%clk 0:00:00]} 34. Kd1 {[%clk 0:01:37]} 1-0


[Site "https://www.chess.com"]

[Event "Titled Tuesday Blitz June 13 Early 2023"]
[White "campochess"]
[Black "Estrada Nieto, Julian"]
[BlackFideId "5101018"]
[WhiteElo "2195"]
[BlackElo "2161"]
[Result "0-1"]
[Round "6"]
[TimeControl "180+2"]
[Date "2023.06.13"]
[WhiteClock "0:00:00"]
[BlackClock "0:00:20"]
[Board "157"]

1. Nf3 {[%clk 0:02:49]}  d5 {[%clk 0:02:59]} 2. b3 {[%clk 0:02:49]}  Nf6 {[%clk 0:02:59]} 3. Bb2 {[%clk 0:02:49]}  Bg4 {[%clk 0:03:00]} 4. Ne5 {[%clk 0:02:47]}  Bf5 {[%clk 0:02:59]} 5. d3 {[%clk 0:02:46]}  Nbd7 {[%clk 0:02:59]} 6. Nd2 {[%clk 0:02:39]}  e6 {[%clk 0:02:55]} 7. Ndf3 {[%clk 0:02:36]}  Bd6 {[%clk 0:02:51]} 8. h3 {[%clk 0:02:28]}  h6 {[%clk 0:02:44]} 9. g4 {[%clk 0:02:27]}  Bh7 {[%clk 0:02:45]} 10. Bg2 {[%clk 0:02:27]}  Nxe5 {[%clk 0:02:44]} 11. Nxe5 {[%clk 0:02:24]}  Qe7 {[%clk 0:02:44]} 12. a4 {[%clk 0:02:22]}  Bb4+ {[%clk 0:02:27]} 13. Kf1 {[%clk 0:02:17]}  c6 {[%clk 0:02:18]} 14. c4 {[%clk 0:02:17]}  O-O {[%clk 0:02:11]} 15. a5 {[%clk 0:02:12]}  a6 {[%clk 0:02:06]} 16. Ra4 {[%clk 0:02:04]}  Rfd8 {[%clk 0:02:01]} 17. Qc1 {[%clk 0:01:58]}  Bd6 {[%clk 0:01:58]} 18. g5 {[%clk 0:01:50]}  hxg5 {[%clk 0:01:49]} 19. Qxg5 {[%clk 0:01:49]}  Ne8 {[%clk 0:01:47]} 20. Qe3 {[%clk 0:01:41]}  f6 {[%clk 0:01:33]} 21. Nf3 {[%clk 0:01:40]}  Nc7 {[%clk 0:01:23]} 22. h4 {[%clk 0:01:24]}  e5 {[%clk 0:01:21]} 23. h5 {[%clk 0:01:20]}  d4 {[%clk 0:01:19]} 24. Qd2 {[%clk 0:01:13]}  Ne6 {[%clk 0:01:18]} 25. b4 {[%clk 0:01:11]}  c5 {[%clk 0:01:13]} 26. b5 {[%clk 0:01:07]}  Nf4 {[%clk 0:01:13]} 27. Nh4 {[%clk 0:00:56]}  Nxg2 {[%clk 0:00:52]} 28. Kxg2 {[%clk 0:00:52]}  Qe8 {[%clk 0:00:49]} 29. Nf3 {[%clk 0:00:43]}  axb5 {[%clk 0:00:47]} 30. cxb5 {[%clk 0:00:42]}  Qxb5 {[%clk 0:00:46]} 31. Raa1 {[%clk 0:00:24]}  Qd7 {[%clk 0:00:43]} 32. Rh4 {[%clk 0:00:18]}  Re8 {[%clk 0:00:37]} 33. Bc1 {[%clk 0:00:15]}  e4 {[%clk 0:00:34]} 34. Qa2+ {[%clk 0:00:15]}  Qf7 {[%clk 0:00:32]} 35. dxe4 {[%clk 0:00:14]}  Qxa2 {[%clk 0:00:29]} 36. Rxa2 {[%clk 0:00:14]}  Bxe4 {[%clk 0:00:28]} 37. Rg4 {[%clk 0:00:13]}  Kf7 {[%clk 0:00:25]} 38. Ba3 {[%clk 0:00:07]}  Bc6 {[%clk 0:00:21]} 39. Bb2 {[%clk 0:00:00]}  Rxe2 {[%clk 0:00:20]} 0-1


[Site "https://www.chess.com"]

[Event "Titled Tuesday Blitz June 13 Early 2023"]
[White "Osuna Vega, Enrique"]
[Black "Vega Gutierrez, Sabrina"]
[WhiteFideId "2219549"]
[BlackFideId "2219026"]
[WhiteElo "2184"]
[BlackElo "2209"]
[Result "0-1"]
[Round "6"]
[TimeControl "180+2"]
[Date "2023.06.13"]
[WhiteClock "0:00:00"]
[BlackClock "0:00:14"]
[Board "158"]

1. e4 {[%clk 0:02:59]}  c5 {[%clk 0:02:59]} 2. Nf3 {[%clk 0:02:55]}  Nc6 {[%clk 0:03:00]} 3. d4 {[%clk 0:02:55]}  cxd4 {[%clk 0:03:01]} 4. Nxd4 {[%clk 0:02:55]}  Nf6 {[%clk 0:03:01]} 5. Nc3 {[%clk 0:02:55]}  e5 {[%clk 0:03:02]} 6. Ndb5 {[%clk 0:02:55]}  d6 {[%clk 0:03:02]} 7. Nd5 {[%clk 0:02:55]}  Nxd5 {[%clk 0:03:02]} 8. exd5 {[%clk 0:02:56]}  Nb8 {[%clk 0:03:03]} 9. c4 {[%clk 0:02:56]}  Be7 {[%clk 0:02:56]} 10. Be2 {[%clk 0:02:49]}  a6 {[%clk 0:02:55]} 11. Nc3 {[%clk 0:02:42]}  O-O {[%clk 0:02:56]} 12. O-O {[%clk 0:02:42]}  f5 {[%clk 0:02:52]} 13. f4 {[%clk 0:02:41]}  Nd7 {[%clk 0:02:51]} 14. fxe5 {[%clk 0:02:36]}  Nxe5 {[%clk 0:02:50]} 15. Be3 {[%clk 0:02:36]}  Bg5 {[%clk 0:02:42]} 16. Qc1 {[%clk 0:02:17]}  Bxe3+ {[%clk 0:02:35]} 17. Qxe3 {[%clk 0:02:18]}  Bd7 {[%clk 0:02:35]} 18. b4 {[%clk 0:02:08]}  a5 {[%clk 0:02:25]} 19. a3 {[%clk 0:02:07]}  axb4 {[%clk 0:02:25]} 20. axb4 {[%clk 0:02:06]}  Rxa1 {[%clk 0:02:26]} 21. Rxa1 {[%clk 0:02:07]}  f4 {[%clk 0:02:27]} 22. Qe4 {[%clk 0:01:40]}  Qb6+ {[%clk 0:02:23]} 23. c5 {[%clk 0:01:32]}  dxc5 {[%clk 0:02:20]} 24. Qxe5 {[%clk 0:01:29]}  cxb4+ {[%clk 0:02:20]} 25. Kh1 {[%clk 0:01:18]}  bxc3 {[%clk 0:02:20]} 26. Qxc3 {[%clk 0:01:17]}  Qf2 {[%clk 0:02:12]} 27. Qf3 {[%clk 0:00:53]}  Qxf3 {[%clk 0:01:33]} 28. Bxf3 {[%clk 0:00:54]}  Rc8 {[%clk 0:01:31]} 29. h3 {[%clk 0:00:52]}  Rc3 {[%clk 0:00:32]} 30. Kh2 {[%clk 0:00:41]}  Kf8 {[%clk 0:00:29]} 31. Rb1 {[%clk 0:00:40]}  b5 {[%clk 0:00:28]} 32. Rb4 {[%clk 0:00:34]}  g5 {[%clk 0:00:26]} 33. Be2 {[%clk 0:00:28]}  Rc5 {[%clk 0:00:25]} 34. Bf3 {[%clk 0:00:25]}  Ke7 {[%clk 0:00:25]} 35. Re4+ {[%clk 0:00:23]}  Kd6 {[%clk 0:00:26]} 36. Rb4 {[%clk 0:00:21]}  Rc4 {[%clk 0:00:26]} 37. Rb2 {[%clk 0:00:19]}  b4 {[%clk 0:00:26]} 38. Kg1 {[%clk 0:00:19]}  Kc5 {[%clk 0:00:23]} 39. Kf2 {[%clk 0:00:18]}  Rc1 {[%clk 0:00:19]} 40. Be4 {[%clk 0:00:13]}  h6 {[%clk 0:00:18]} 41. Ke2 {[%clk 0:00:11]}  Bb5+ {[%clk 0:00:18]} 42. Kd2 {[%clk 0:00:11]}  Rf1 {[%clk 0:00:16]} 43. Rc2+ {[%clk 0:00:09]}  Kd6 {[%clk 0:00:14]} 44. Bf3 {[%clk 0:00:08]}  Rf2+ {[%clk 0:00:14]} 45. Kc1 {[%clk 0:00:08]}  Rxc2+ {[%clk 0:00:13]} 46. Kxc2 {[%clk 0:00:08]}  Bc4 {[%clk 0:00:14]} 47. Kb2 {[%clk 0:00:00]}  Bxd5 {[%clk 0:00:14]} 0-1


[Site "https://www.chess.com"]

[Event "Titled Tuesday Blitz June 13 Early 2023"]
[White "Castillo Pena, Patricia Evarista"]
[Black "Goncalves, Davi Sulzbacher"]
[WhiteFideId "6412106"]
[BlackFideId "2154510"]
[WhiteElo "1859"]
[BlackElo "2182"]
[Result "0-1"]
[Round "6"]
[TimeControl "180+2"]
[Date "2023.06.13"]
[WhiteClock "0:00:03"]
[BlackClock "0:00:09"]
[Board "159"]

1. d4 {[%clk 0:03:00]}  Nf6 {[%clk 0:02:53]} 2. Nf3 {[%clk 0:03:00]}  c5 {[%clk 0:02:53]} 3. e3 {[%clk 0:02:56]}  d5 {[%clk 0:02:53]} 4. Bd3 {[%clk 0:02:54]}  Nc6 {[%clk 0:02:53]} 5. b3 {[%clk 0:02:54]}  Bg4 {[%clk 0:02:52]} 6. Bb2 {[%clk 0:02:54]}  e6 {[%clk 0:02:53]} 7. Nbd2 {[%clk 0:02:54]}  cxd4 {[%clk 0:02:51]} 8. exd4 {[%clk 0:02:54]}  Bd6 {[%clk 0:02:50]} 9. O-O {[%clk 0:02:53]}  O-O {[%clk 0:02:50]} 10. a3 {[%clk 0:02:53]}  Rc8 {[%clk 0:02:46]} 11. Qb1 {[%clk 0:02:51]}  Qc7 {[%clk 0:02:38]} 12. h3 {[%clk 0:02:48]}  Bh5 {[%clk 0:02:38]} 13. Re1 {[%clk 0:02:39]}  Bg6 {[%clk 0:02:32]} 14. c4 {[%clk 0:02:37]}  Nh5 {[%clk 0:02:22]} 15. Ne5 {[%clk 0:02:22]}  Bxe5 {[%clk 0:01:59]} 16. dxe5 {[%clk 0:02:12]}  Nf4 {[%clk 0:01:58]} 17. Bxg6 {[%clk 0:02:09]}  fxg6 {[%clk 0:01:38]} 18. cxd5 {[%clk 0:02:08]}  Nxd5 {[%clk 0:01:31]} 19. Nc4 {[%clk 0:02:00]}  Rf4 {[%clk 0:01:16]} 20. Nd6 {[%clk 0:01:28]}  Rcf8 {[%clk 0:01:16]} 21. Re2 {[%clk 0:01:16]}  Qb6 {[%clk 0:01:15]} 22. Ne4 {[%clk 0:01:04]}  Qxb3 {[%clk 0:01:10]} 23. Ng5 {[%clk 0:00:58]}  Qb6 {[%clk 0:00:27]} 24. Bc1 {[%clk 0:00:37]}  Rxf2 {[%clk 0:00:24]} 25. Qxb6 {[%clk 0:00:36]}  Rf1+ {[%clk 0:00:24]} 26. Kh2 {[%clk 0:00:35]}  axb6 {[%clk 0:00:20]} 27. Nxe6 {[%clk 0:00:35]}  Re8 {[%clk 0:00:20]} 28. Ng5 {[%clk 0:00:31]}  Rxe5 {[%clk 0:00:20]} 29. Rxe5 {[%clk 0:00:30]}  Nxe5 {[%clk 0:00:21]} 30. Bb2 {[%clk 0:00:30]}  Rxa1 {[%clk 0:00:20]} 31. Bxa1 {[%clk 0:00:31]}  Nc4 {[%clk 0:00:20]} 32. a4 {[%clk 0:00:30]}  Nc7 {[%clk 0:00:16]} 33. Bd4 {[%clk 0:00:27]}  h6 {[%clk 0:00:15]} 34. Ne4 {[%clk 0:00:27]}  Kf7 {[%clk 0:00:15]} 35. Nc3 {[%clk 0:00:22]}  g5 {[%clk 0:00:14]} 36. Nb5 {[%clk 0:00:22]}  Nxb5 {[%clk 0:00:14]} 37. axb5 {[%clk 0:00:23]}  g6 {[%clk 0:00:12]} 38. Kg3 {[%clk 0:00:22]}  Ke6 {[%clk 0:00:12]} 39. Kf3 {[%clk 0:00:22]}  Kd5 {[%clk 0:00:11]} 40. Bg7 {[%clk 0:00:21]}  h5 {[%clk 0:00:11]} 41. g4 {[%clk 0:00:20]}  Nd6 {[%clk 0:00:11]} 42. gxh5 {[%clk 0:00:17]}  gxh5 {[%clk 0:00:12]} 43. Bh6 {[%clk 0:00:12]}  Nf7 {[%clk 0:00:11]} 44. Bg7 {[%clk 0:00:11]}  Kc4 {[%clk 0:00:11]} 45. Bf6 {[%clk 0:00:10]}  Kxb5 {[%clk 0:00:11]} 46. Ke4 {[%clk 0:00:10]}  Kc4 {[%clk 0:00:11]} 47. Kf5 {[%clk 0:00:11]}  g4 {[%clk 0:00:10]} 48. hxg4 {[%clk 0:00:10]}  hxg4 {[%clk 0:00:11]} 49. Kxg4 {[%clk 0:00:10]}  b5 {[%clk 0:00:10]} 50. Kf3 {[%clk 0:00:10]}  Kd3 {[%clk 0:00:10]} 51. Kf2 {[%clk 0:00:09]}  b4 {[%clk 0:00:09]} 52. Ke1 {[%clk 0:00:09]}  Kc2 {[%clk 0:00:09]} 53. Ke2 {[%clk 0:00:03]}  b3 {[%clk 0:00:09]} 0-1


[Site "https://www.chess.com"]

[Event "Titled Tuesday Blitz June 13 Early 2023"]
[White "Balla, Tamas-Kristof"]
[Black "Vifleemskaia, Svetlana"]
[WhiteFideId "1208497"]
[BlackFideId "4129490"]
[WhiteElo "2334"]
[BlackElo "1930"]
[Result "0-1"]
[Round "6"]
[TimeControl "180+2"]
[Date "2023.06.13"]
[WhiteClock "0:00:16"]
[BlackClock "0:00:58"]
[Board "162"]

1. e4 {[%clk 0:02:58]}  e5 {[%clk 0:02:59]} 2. Nf3 {[%clk 0:02:57]}  Nc6 {[%clk 0:02:59]} 3. d4 {[%clk 0:02:55]}  exd4 {[%clk 0:02:58]} 4. Nxd4 {[%clk 0:02:56]}  Bc5 {[%clk 0:02:58]} 5. Nb3 {[%clk 0:02:55]}  Bb6 {[%clk 0:02:58]} 6. Nc3 {[%clk 0:02:55]}  Nf6 {[%clk 0:02:58]} 7. Qe2 {[%clk 0:02:52]}  a5 {[%clk 0:02:57]} 8. Be3 {[%clk 0:02:49]}  Bxe3 {[%clk 0:02:52]} 9. Qxe3 {[%clk 0:02:48]}  a4 {[%clk 0:02:50]} 10. Nd4 {[%clk 0:02:39]}  Nxd4 {[%clk 0:02:44]} 11. Qxd4 {[%clk 0:02:39]}  a3 {[%clk 0:02:44]} 12. b3 {[%clk 0:02:33]}  d6 {[%clk 0:02:42]} 13. Bc4 {[%clk 0:02:28]}  Qe7 {[%clk 0:02:41]} 14. O-O {[%clk 0:02:27]}  O-O {[%clk 0:02:40]} 15. Rfe1 {[%clk 0:02:21]}  Be6 {[%clk 0:02:34]} 16. Bd3 {[%clk 0:02:14]}  c6 {[%clk 0:02:28]} 17. e5 {[%clk 0:02:13]}  dxe5 {[%clk 0:02:24]} 18. Qxe5 {[%clk 0:02:12]}  Rfd8 {[%clk 0:02:19]} 19. Ne4 {[%clk 0:02:06]}  Nxe4 {[%clk 0:02:01]} 20. Rxe4 {[%clk 0:02:02]}  Rd5 {[%clk 0:01:59]} 21. Qf4 {[%clk 0:01:51]}  Qg5 {[%clk 0:01:57]} 22. Rae1 {[%clk 0:01:34]}  Qxf4 {[%clk 0:01:56]} 23. Rxf4 {[%clk 0:01:35]}  Rd7 {[%clk 0:01:48]} 24. h3 {[%clk 0:01:32]}  g6 {[%clk 0:01:46]} 25. Re2 {[%clk 0:01:29]}  Kg7 {[%clk 0:01:41]} 26. Bc4 {[%clk 0:01:14]}  Bxc4 {[%clk 0:01:35]} 27. Rxc4 {[%clk 0:01:14]}  Rad8 {[%clk 0:01:22]} 28. Kf1 {[%clk 0:00:55]}  Rd1+ {[%clk 0:01:18]} 29. Re1 {[%clk 0:00:55]}  R1d2 {[%clk 0:01:18]} 30. g3 {[%clk 0:00:48]}  R8d7 {[%clk 0:01:12]} 31. h4 {[%clk 0:00:48]}  h5 {[%clk 0:01:11]} 32. Rc1 {[%clk 0:00:39]}  Rd1+ {[%clk 0:01:10]} 33. Rxd1 {[%clk 0:00:39]}  Rxd1+ {[%clk 0:01:11]} 34. Ke2 {[%clk 0:00:40]}  Ra1 {[%clk 0:01:11]} 35. Rb4 {[%clk 0:00:40]}  b5 {[%clk 0:01:10]} 36. Kd3 {[%clk 0:00:35]}  Rxa2 {[%clk 0:01:10]} 37. Kc3 {[%clk 0:00:23]}  Ra1 {[%clk 0:01:03]} 38. Rd4 {[%clk 0:00:16]}  Rf1 {[%clk 0:00:58]} 0-1


[Site "https://www.chess.com"]